fUSD/lending_fUSD_20240713
["ID","MTS","AMOUNT","RATE_DAILY","PERIOD"]
[331920437,1720845044775,-5253.65736738,0.00014,2]
[331920438,1720845044786,-725.70884791,0.00014,2]
[331920439,1720845044797,-20846.16339031,0.00014,2]
[331920440,1720845044808,-516.50550932,0.00014,2]
[331920441,1720845044828,-248671.32570613,0.00014,2]
[331920442,1720845044839,-58437.15784142,0.00014,2]
[331920443,1720845044851,-700.0,0.00014,2]
[331920467,1720845045863,-619.0,0.00013887,2]
[331920470,1720845045873,-1220.23938075,0.00014,2]
[331920478,1720845045925,-3128.30000009,0.00014,2]
[331920480,1720845045936,-5801.50000002,0.00014,2]
[331920493,1720845046046,-270.462826,0.00014,2]
[331920495,1720845046057,-819.48864063,0.00014,2]
[331920501,1720845046109,-3435.2817797,0.00014,2]
[331920502,1720845046175,-2160.074,0.00014,2]
[331920503,1720845082986,406.11,0.00013073,2]
[331920504,1720845127686,434.48,0.00010914,2]
[331920505,1720845152387,500.0,0.00013071,2]
[331920506,1720845253480,3263.08468929,0.00013071,2]
[331920507,1720845265558,4515.65195613,0.00013009,2]
[331920508,1720845265581,10000.0,0.00013009,2]
[331920509,1720845265606,8237.61804387,0.00013009,2]
[331920510,1720845281147,250.0,0.00013009,2]
[331920512,1720845327305,250.0,0.00012976,2]
[331920513,1720845353190,1262.38195613,0.00011199,2]
[331920514,1720845353212,10000.0,0.00011199,2]
[331920515,1720845353237,3944.96425477,0.00011199,2]
[331920517,1720845443315,6055.03574523,0.00011199,2]
[331920518,1720845443341,4473.24719392,0.00011199,2]
[331920519,1720845485392,3640.21781781,0.00011199,2]
[331920520,1720845498180,248.3,0.00012943,2]
[331920521,1720845503129,340.21,0.00012943,2]
[331920525,1720845539585,200.0,0.00012929,2]
[331920526,1720845551096,170.78,0.00012913,2]
[331920527,1720845626280,630.00812827,0.00012913,2]
[331920528,1720845626303,369.99187173,0.00012913,2]
[331920529,1720845633329,9630.00812827,0.00011199,2]
[331920530,1720845633352,898.27481088,0.00011199,2]
[331920531,1720845634047,6710.19062126,0.00011199,2]
[331920532,1720845678415,712.56,0.00012932,2]
[331920533,1720845709266,253.61758458,0.00012314,2]
[331920534,1720845711766,1425.35698328,0.00011199,2]
[331920535,1720845711789,969.30290009,0.00011199,2]
[331920536,1720845736854,155.0,0.00012314,2]
[331920537,1720845740887,254.48790118,0.00012314,2]
[331920538,1720845747675,399.50967159,0.00012314,2]
[331920539,1720845758823,216.67569474,0.00012314,2]
[331920540,1720845771679,432.26,0.00010987,2]
[331920541,1720845783029,156.76606447,0.00012314,2]
[331920542,1720845783291,158.96445148,0.00012314,2]
[331920544,1720845808677,198.1160126,0.00012314,2]
[331920548,1720845824401,7058.91730385,0.00010987,2]
[331920549,1720845824424,2941.08269615,0.00010987,2]
[331920550,1720845838377,331.65805076,0.00012314,2]
[331920551,1720845850138,200.16734169,0.00012314,2]
[331920558,1720845886229,1250.0,0.00013,2]
[331920559,1720845893964,5277.0919114,0.00011199,2]
[331920560,1720845893987,368.21351313,0.00011199,2]
[331920562,1720845930621,197.54744095,0.00012314,2]
[331920566,1720845995681,3394.25146719,0.00011199,2]
[331920569,1720846034481,1287.48512797,0.00011199,2]
[331920576,1720846058550,-196.74437875,0.00012173,2]
[331920577,1720846058572,-3458.77413823,0.00012202,2]
[331920578,1720846058594,-369.13157018,0.00012273,2]
[331920579,1720846058616,-160.39840905,0.00012302,2]
[331920580,1720846058640,-191.6916045,0.00012302,2]
[331920581,1720846058663,-195.28641418,0.00012314,2]
[331920582,1720846058685,-150.0,0.000126,2]
[331920601,1720846182775,23787.85432764,0.00011199,2]
[331920614,1720846231907,-297.23686,0.00012273,2]
[331920615,1720846231918,-185.11,0.00012837,2]
[331920616,1720846231927,-250.0,0.00012841,2]
[331920617,1720846231938,-300.0,0.00013128,2]
[331920618,1720846231947,-2201.79322894,0.00013128,2]
[331920619,1720846231956,-582.0,0.0001318,2]
[331920620,1720846231965,-432.26,0.00013251,2]
[331920621,1720846231975,-150.0,0.00013288,2]
[331920622,1720846231985,-1035.784047,0.00013417,2]
[331920623,1720846231994,-3793.01575127,0.00013472,2]
[331920624,1720846232003,-529.13,0.000135,2]
[331920625,1720846232012,-298.75335032,0.00013516,2]
[331920626,1720846232021,-155.46415476,0.00013516,2]
[331920627,1720846232030,-150.99,0.00013543,2]
[331920628,1720846232039,-155.0,0.00013543,2]
[331920629,1720846232048,-155.0,0.00013543,2]
[331920630,1720846232058,-581.86436569,0.00013585,2]
[331920631,1720846232069,-453.91968131,0.00013585,2]
[331920632,1720846232078,-510.73,0.000136,2]
[331920633,1720846232087,-340.8,0.00013652,2]
[331920634,1720846232096,-300.0,0.00013698,2]
[331920635,1720846232108,-250.0,0.00013699,2]
[331920636,1720846232117,-200.0,0.00013699,2]
[331920637,1720846232127,-365.82,0.00013699,2]
[331920638,1720846232136,-2751.0,0.00013699,2]
[331920639,1720846232146,-1612.23,0.00013699,2]
[331920640,1720846232155,-234.83,0.00013721,2]
[331920641,1720846232164,-150.0,0.00013735,2]
[331920642,1720846232173,-938.97094641,0.00013736,2]
[331920643,1720846232185,-543.83019264,0.00013736,2]
[331920644,1720846232196,-7499.01025656,0.00013736,2]
[331920645,1720846232211,-550.83196205,0.00013736,2]
[331920646,1720846232222,-603.68196204,0.00013736,2]
[331920647,1720846232241,-2648.09637595,0.00013736,2]
[331920648,1720846232250,-1035.784047,0.00013752,2]
[331920649,1720846232259,-332.71526112,0.00013752,2]
[331920650,1720846232270,-167.27473888,0.00013752,2]
[331920651,1720846232279,-687.58598172,0.00013752,2]
[331920652,1720846233102,-100.17161714,0.00013752,2]
[331920673,1720846237839,-387.59240114,0.00013752,2]
[331920675,1720846237850,-46.19064373,0.00013759,2]
[331920677,1720846237860,-483.1775611,0.00013759,2]
[331920679,1720846237871,-1082.05727837,0.00013759,2]
[331920680,1720846237880,-529.13,0.000138,2]
[331920681,1720846237889,-150.0,0.000138,2]
[331920682,1720846237899,-300.0,0.000138,2]
[331920683,1720846237909,-415.29,0.000138,2]
[331920684,1720846237919,-419.31,0.000138,2]
[331920685,1720846237929,-107.13516053,0.00013802,2]
[331920686,1720846237941,-48.93760808,0.00013802,2]
[331920687,1720846237951,-162.97245392,0.00013802,2]
[331920688,1720846237962,-189.84937976,0.00013849,2]
[331920689,1720846237972,-505.67353575,0.00013859,2]
[331920690,1720846237981,-1785.88205821,0.0001386,2]
[331920691,1720846238000,-10001.52359973,0.0001386,2]
[331920692,1720846238012,-845.57482597,0.0001386,2]
[331920693,1720846238022,-7102.99562553,0.0001386,2]
[331920694,1720846238033,-1433.71268284,0.0001386,2]
[331920695,1720846238044,-1226.7790402,0.0001386,2]
[331920836,1720846239588,-948.90215079,0.0001386,2]
[331920839,1720846239599,-795.2682055,0.0001386,2]
[331920841,1720846239610,-1007.38297438,0.0001386,2]
[331920843,1720846239620,-7488.22927457,0.0001386,2]
[331920845,1720846239632,-2681.11798487,0.0001386,2]
[331920847,1720846239640,-106.35895955,0.0001386,2]
[331920849,1720846239651,-257.82237684,0.0001386,2]
[331920851,1720846239662,-284.51111494,0.0001386,2]
[331920854,1720846239673,-40.62194867,0.0001386,2]
[331920856,1720846239686,-200.0,0.00013888,2]
[331920858,1720846239695,-252.75555019,0.00013889,2]
[331920860,1720846239704,-155.84978944,0.00013889,2]
[331920862,1720846239713,-654.37201286,0.00013889,2]
[331920863,1720846239723,-458.56830439,0.00013889,2]
[331920865,1720846239731,-687.191,0.0001389,2]
[331920867,1720846239741,-13542.8027,0.0001389,2]
[331920869,1720846239750,-3739.7418,0.00013899,2]
[331920871,1720846239759,-584.01162162,0.00013899,2]
[331920873,1720846239768,-649.33683349,0.00013899,2]
[331920875,1720846239777,-474.86366289,0.00013899,2]
[331920877,1720846239786,-909.7757,0.000139,2]
[331920879,1720846239795,-912.2249,0.000139,2]
[331920881,1720846239804,-7500.0,0.000139,2]
[331920883,1720846239815,-476.06870409,0.000139,2]
[331920885,1720846239826,-745.0577,0.000139,2]
[331920887,1720846239834,-486.20924216,0.000139,2]
[331920889,1720846239845,-1169.0,0.000139,3]
[331920891,1720846239854,-1000.0,0.000139,2]
[331920893,1720846239863,-1000.0,0.000139,2]
[331920894,1720846239871,-1000.0,0.000139,2]
[331920895,1720846239880,-1000.0,0.000139,2]
[331920896,1720846239889,-1000.0,0.000139,2]
[331920897,1720846239898,-1001.0,0.000139,3]
[331920898,1720846239907,-1001.0,0.000139,2]
[331920899,1720846239917,-157.44470744,0.000139,2]
[331920905,1720846240063,-529.13,0.000139,2]
[331920907,1720846240072,-150.0,0.000139,2]
[331920909,1720846240081,-150.0,0.000139,2]
[331920911,1720846240091,-652.43773366,0.000139,2]
[331920913,1720846240100,-419.46779928,0.000139,2]
[331920915,1720846240109,-418.51126409,0.000139,2]
[331920916,1720846240117,-1035.784047,0.0001392,2]
[331920918,1720846240126,-409.23229485,0.0001393,2]
[331920920,1720846240136,-860.90879302,0.00013973,2]
[331920923,1720846240149,-132.80225398,0.00013973,2]
[331920925,1720846240158,-444.0,0.0001398,2]
[331920927,1720846240168,-325.3503792,0.0001398,2]
[331920929,1720846240181,-123.6496208,0.0001398,2]
[331920931,1720846240190,-150.0,0.0001398,2]
[331920933,1720846240201,-1197.0,0.0001398,2]
[331920935,1720846240210,-1071.0,0.0001398,2]
[331920937,1720846240219,-150.0,0.0001398,2]
[331920939,1720846240228,-500.0,0.00013989,2]
[331920941,1720846240238,-2500.0,0.00013989,3]
[331920943,1720846240249,-1272.35,0.00013989,2]
[331920945,1720846240259,-500.0,0.00013989,2]
[331920947,1720846240268,-439.343314,0.00013989,2]
[331920949,1720846240280,-60.656686,0.00013989,2]
[331920951,1720846240290,-500.0,0.00013989,2]
[331920954,1720846240300,-500.0,0.00013989,2]
[331920955,1720846240311,-245.49903307,0.00013989,2]
[331920957,1720846240320,-193.84428093,0.00013989,2]
[331920964,1720846240377,-451.54149308,0.000139,2]
[331920966,1720846240387,-193.97897141,0.00013989,2]
[331920968,1720846240398,-188.04824218,0.00013989,2]
[331920970,1720846240408,-158.50656672,0.00013989,2]
[331920972,1720846240417,-202.48311659,0.00013989,2]
[331920974,1720846240426,-188.23245816,0.0001399,2]
[331920976,1720846240435,-1829.83556529,0.00013997,2]
[331920978,1720846240444,-500.0,0.00013999,2]
[331920980,1720846240455,-346.6238113,0.00013999,2]
[331920982,1720846240465,-500.0,0.00013999,2]
[331920983,1720846240475,-368.83185483,0.00013999,2]
[331920985,1720846240484,-500.0,0.00013999,2]
[331920987,1720846240493,-500.0,0.00013999,2]
[331920989,1720846240502,-493.10705705,0.00013999,2]
[331920991,1720846240512,-230.86613783,0.00013999,2]
[331920993,1720846240521,-1655.71,0.00013999,2]
[331920995,1720846240530,-460.2017202,0.00013999,2]
[331920997,1720846240540,-500.0,0.00013999,2]
[331920999,1720846240548,-33086.7338632,0.00013999,2]
[331921001,1720846240558,-1359.83,0.00013999,2]
[331921003,1720846240567,-2059.23,0.00013999,2]
[331921004,1720846240576,-4181.0961428,0.00013999,2]
[331921006,1720846240586,-616.18959064,0.00013999,2]
[331921008,1720846240595,-837.3193242,0.00013999,2]
[331921009,1720846240604,-456.1259615,0.00013999,2]
[331921011,1720846240614,-500.0,0.00013999,2]
[331921013,1720846240623,-616.18959064,0.00013999,2]
[331921014,1720846240632,-894.14,0.00013999,2]
[331921016,1720846240642,-433.35729567,0.00013999,2]
[331921018,1720846240652,-224159.67689339,0.00014,2]
[331921020,1720846240662,-1010965.16569592,0.00014,2]
[331921022,1720846240671,-155.12376971,0.00014,2]
[331921024,1720846240686,-150.51821596,0.00014,2]
[331921026,1720846240695,-6075449.77608849,0.00014,2]
[331921028,1720846240704,-1033.24318977,0.00014,2]
[331921029,1720846240714,-2159.8,0.00014,2]
[331921031,1720846240723,-605835.19619988,0.00014,2]
[331921034,1720846240736,-72588.39459769,0.00014,2]
[331921036,1720846240747,-21513.17267246,0.00014,2]
[331921038,1720846240762,-268.03773527,0.00014,2]
[331921040,1720846240773,-911.74430839,0.00014,2]
[331921043,1720846240785,-304.6325658,0.00014,2]
[331921045,1720846240796,-881.41891906,0.00014,2]
[331921192,1720846243196,-358.503461,0.0001379,2]
[331921193,1720846243205,-484.23976416,0.00014,2]
[331921194,1720846243217,-486.94978314,0.00014,2]
[331921195,1720846243228,-346.27145619,0.00014,2]
[331921196,1720846244733,-1165.39763693,0.00014,2]
[331921197,1720846244743,-1864.28178793,0.00014,2]
[331921198,1720846244754,-1605.35180376,0.00014,2]
[331921199,1720846244766,-1220.0,0.00014,2]
[331921200,1720846244778,-331.31316578,0.00014,2]
[331921201,1720846244826,-1064.00008,0.00014,2]
[331921219,1720846246027,-616.18959064,0.00013989,2]
[331921221,1720846246037,-3206.86040936,0.00014,2]
[331921225,1720846246087,-2833.19790217,0.00014,2]
[331921227,1720846246098,-1349.08580306,0.00014,2]
[331921236,1720846246254,-584.82021014,0.00014,2]
[331921238,1720846246314,-34955.87452778,0.00014,2]
[331921239,1720846347112,426.09,0.00011155,2]
[331921240,1720846387052,1368.46802832,0.00011155,2]
[331921242,1720846547062,1368.46802832,0.00011155,2]
[331921243,1720846694523,229.31630563,0.00011199,2]
[331921244,1720846707938,413.21120921,0.00011199,2]
[331921245,1720846795552,175.71287562,0.00011199,2]
[331921246,1720846869867,789.83801182,0.00011199,2]
[331921247,1720846883370,422.51,0.00011016,2]
[331921249,1720846941348,155.17725812,0.00011199,2]
[331921250,1720846963277,5346.48345922,0.00011199,2]
[331921251,1720846983903,1105.93757883,0.00011199,2]
[331921252,1720847015282,1143.26398037,0.00011199,2]
[331921254,1720847044482,1253.30119177,0.00011199,2]
[331921255,1720847053823,22887.74513665,0.00011199,2]
[331921256,1720847106412,237.71047658,0.00011199,2]
[331921258,1720847199450,156.17066336,0.00011199,2]
[331921259,1720847203117,633.42521224,0.00011199,2]
[331921264,1720847232820,157.15535395,0.00011199,2]
[331921265,1720847234546,1000.0,0.00025,60]
[331921268,1720847244153,356.42240482,0.00011199,2]
[331921269,1720847257755,160.44634911,0.00011199,2]
[331921275,1720847383752,417.52605636,0.00011199,2]
[331921282,1720847423969,155.30311994,0.00011199,2]
[331921283,1720847424542,1302.86269743,0.00011199,2]
[331921284,1720847428222,388.50681923,0.00011199,2]
[331921285,1720847432008,-155.0,0.00012273,2]
[331921286,1720847432018,-155.67533599,0.00012302,2]
[331921287,1720847432028,-297.23686,0.00012302,2]
[331921288,1720847432038,-150.0,0.000126,2]
[331921289,1720847432047,-250.0,0.00012821,2]
[331921290,1720847432056,-198.64,0.00012841,2]
[331921291,1720847432065,-1000.0,0.00012893,2]
[331921292,1720847432075,-211.29,0.00012958,2]
[331921293,1720847432084,-224.93896768,0.00013128,2]
[331921294,1720847432095,-371.10892981,0.00013128,2]
[331921295,1720847432105,-533.90157478,0.00013128,2]
[331921296,1720847432115,-370.00600628,0.00013128,2]
[331921297,1720847432124,-260.89225435,0.00013128,2]
[331921298,1720847432134,-347.22587627,0.00013128,2]
[331921299,1720847432143,-422.51,0.0001328,2]
[331921300,1720847432152,-178.44,0.00013404,2]
[331921301,1720847432162,-181.046076,0.00013417,2]
[331921302,1720847432171,-180.403032,0.00013417,2]
[331921303,1720847432180,-188.53263349,0.00013472,2]
[331921304,1720847432190,-63.27016236,0.00013516,2]
[331921305,1720847432202,-259.04768574,0.00013516,2]
[331921306,1720847432212,-1372.85727799,0.00013521,2]
[331921307,1720847432221,-308.57850816,0.00013543,2]
[331921308,1720847432230,-407.34716356,0.00013574,2]
[331921309,1720847432244,-2990.22575749,0.00013574,2]
[331921310,1720847432254,-3107.94822691,0.00013574,2]
[331921311,1720847432263,-445.85428887,0.00013574,2]
[331921312,1720847432273,-180.403032,0.00013641,2]
[331921313,1720847432283,-151.37,0.00013652,2]
[331921314,1720847432293,-150.0,0.00013652,2]
[331921315,1720847432302,-150.0,0.00013652,2]
[331921316,1720847432311,-150.0,0.00013652,2]
[331921317,1720847432322,-150.0,0.00013652,2]
[331921318,1720847432332,-250.0,0.00013699,2]
[331921319,1720847432342,-286.03,0.00013699,2]
[331921320,1720847432352,-1071.0,0.000137,2]
[331921321,1720847432362,-528.89993841,0.00013759,2]
[331921322,1720847432372,-2160.23923,0.0001386,2]
[331921323,1720847432382,-180.403032,0.00013864,2]
[331921324,1720847432393,-150.0,0.00013872,2]
[331921325,1720847432403,-24870.34532878,0.00013873,2]
[331921326,1720847432414,-15357.65467122,0.00013873,2]
[331921327,1720847432424,-500.0,0.00013888,2]
[331921328,1720847432436,-220.48,0.0001389,3]
[331921329,1720847432446,-71014.30008604,0.00013899,2]
[331921330,1720847432458,-4051.00227482,0.00013899,2]
[331921331,1720847432472,-937.82543877,0.00013899,2]
[331921332,1720847432485,-664.57727663,0.00013899,2]
[331921334,1720847432496,-562.4996314,0.00013899,2]
[331921336,1720847432506,-465.21532182,0.00013899,2]
[331921337,1720847432517,-382.31751455,0.00013899,2]
[331921338,1720847432529,-2114.71810621,0.00013899,2]
[331921339,1720847432541,-2000.0,0.00013899,2]
[331921340,1720847432557,-546.53616094,0.00013899,2]
[331921341,1720847432571,-2003.09544,0.00013899,2]
[331921342,1720847432590,-806.77598637,0.00013899,2]
[331921343,1720847433326,155.87732984,0.00011199,2]
[331921347,1720847438072,-2991.5819992,0.00012173,2]
[331921348,1720847438081,-38.9291317,0.00013899,2]
[331921349,1720847438264,-712.24035346,0.00013899,2]
[331921386,1720847438922,-26734.70671688,0.00013899,2]
[331921388,1720847438933,-5808.32989986,0.00013899,2]
[331921390,1720847438947,-3815.97771161,0.00013899,2]
[331921393,1720847438958,-785.92464769,0.00013899,2]
[331921395,1720847438972,-782.62207443,0.00013899,2]
[331921398,1720847438990,-374.94082365,0.00013899,2]
[331921401,1720847439006,-2833.75534537,0.00013899,2]
[331921444,1720847440112,-286.03,0.00013699,2]
[331921446,1720847440122,-514.77801417,0.00013899,2]
[331921452,1720847440172,-694.57174363,0.00013899,2]
[331921454,1720847440183,-616.18959064,0.00013899,2]
[331921456,1720847440193,-2168.54387573,0.000139,2]
[331921458,1720847440206,-1312.16685292,0.000139,2]
[331921466,1720847440363,-4019.28927135,0.000139,2]
[331921467,1720847440373,-1610.63649224,0.000139,2]
[331921468,1720847440383,-326.21886683,0.000139,2]
[331921469,1720847440392,-546.12719248,0.000139,2]
[331921470,1720847440401,-150.0,0.0001398,2]
[331921471,1720847440411,-150.0,0.0001398,2]
[331921472,1720847440420,-150.0,0.0001398,2]
[331921473,1720847440430,-442.872,0.0001398,2]
[331921474,1720847440439,-449.0,0.0001398,2]
[331921475,1720847440449,-1330.41,0.00013998,2]
[331921476,1720847440458,-414.3864109,0.00013999,2]
[331921477,1720847440468,-7665.9036542,0.00013999,2]
[331921478,1720847440477,-1404.1051338,0.00013999,2]
[331921479,1720847440488,-25679.5161649,0.00013999,2]
[331921480,1720847440498,-1436.7336409,0.00013999,2]
[331921481,1720847440508,-500.0,0.00013999,2]
[331921482,1720847440519,-500.0,0.00013999,2]
[331921483,1720847440528,-500.0,0.00013999,2]
[331921484,1720847440537,-500.0,0.00013999,2]
[331921485,1720847440547,-500.0,0.00013999,2]
[331921486,1720847440555,-1219.34,0.00013999,2]
[331921487,1720847440564,-1632.79,0.00013999,2]
[331921488,1720847440573,-856.89,0.00013999,2]
[331921489,1720847440582,-500.0,0.00013999,2]
[331921490,1720847440592,-500.0,0.00013999,2]
[331921491,1720847440601,-2500.0,0.00013999,3]
[331921492,1720847440610,-2007.47,0.00013999,2]
[331921493,1720847440619,-248.0574379,0.00013999,2]
[331921494,1720847440628,-500.0,0.00013999,2]
[331921495,1720847440637,-6694.02161615,0.00014,2]
[331921496,1720847440660,-3618.57512204,0.00014,2]
[331921497,1720847440670,-519.73379976,0.00014,2]
[331921498,1720847440681,-4547.08758781,0.00014,2]
[331921499,1720847440691,-3604.54927796,0.00014,2]
[331921500,1720847440702,-1197.8095201,0.00014,2]
[331921501,1720847440713,-495.55389865,0.00014,2]
[331921502,1720847440724,-6584.77830081,0.00014,2]
[331921503,1720847440735,-1226.66149548,0.00014,2]
[331921504,1720847440745,-583.2607277,0.00014,2]
[331921505,1720847440760,-55545.00000004,0.00014,2]
[331921506,1720847440770,-1751.0,0.00014,2]
[331921517,1720847443147,-20000.39273203,0.00014,2]
[331921518,1720847443158,-2415.26216506,0.00014,2]
[331921519,1720847443205,-668.06889936,0.00014,2]
[331921520,1720847443265,-100214.36327845,0.00014,2]
[331921521,1720847443274,-831197.05670551,0.00014,2]
[331921522,1720847445151,-902.31682698,0.00014,2]
[331921523,1720847445166,-489.98199999,0.00014,2]
[331921524,1720847445177,-513.18500005,0.00014,2]
[331921533,1720847641233,433.28,0.0001089,2]
[331921535,1720847688519,1689.58,0.00025,60]
[331921536,1720847819837,531.53900563,0.00011199,2]
[331921537,1720847841889,504.23385468,0.00011199,2]
[331921538,1720847842133,327.56676667,0.00011199,2]
[331921539,1720847865758,196.61750891,0.00011199,2]
[331921541,1720847874653,400.44480684,0.00011199,2]
[331921542,1720847877281,158.98342126,0.00011199,2]
[331921543,1720847879041,418.69423691,0.00011199,2]
[331921551,1720848192206,427.9,0.00010605,2]
[331921559,1720848388396,4065.05433443,0.00011199,2]
[331921561,1720848414325,184.90396962,0.00011199,2]
[331921589,1720848511251,891.5258106,0.00011199,2]
[331921592,1720848534281,212.50093247,0.00011199,2]
[331921610,1720848632389,-582.05178,0.00012141,2]
[331921611,1720848632401,-316.02355,0.00012141,2]
[331921612,1720848632410,-250.0,0.00012232,2]
[331921613,1720848632419,-145.07949525,0.00012273,2]
[331921614,1720848632432,-298.67781842,0.00012273,2]
[331921615,1720848632442,-155.0,0.00012273,2]
[331921616,1720848632452,-273.01087659,0.00012273,2]
[331921617,1720848632462,-4779.93685194,0.00012275,2]
[331921618,1720848632473,-6471.74362859,0.00012275,2]
[331921619,1720848632483,-200.0,0.00012275,2]
[331921620,1720848632492,-2055.87,0.00012288,2]
[331921621,1720848632501,-201.7130477,0.00012375,2]
[331921622,1720848632511,-169.03,0.00012446,2]
[331921623,1720848632521,-45.72127465,0.00012476,2]
[331921624,1720848632532,-254.27872535,0.00012476,2]
[331921625,1720848632541,-150.0,0.00012476,2]
[331921626,1720848632551,-800.0,0.00012477,2]
[331921627,1720848632560,-15341.94034494,0.00012477,2]
[331921628,1720848632572,-455.85444,0.00012477,2]
[331921629,1720848632583,-335.08950845,0.00012477,2]
[331921630,1720848632595,-276.52,0.00012477,2]
[331921631,1720848632606,-711.72882134,0.00012477,2]
[331921633,1720848632617,-472.14322502,0.00012477,2]
[331921635,1720848632633,-299.6900001,0.00012477,2]
[331921637,1720848632644,-298.96499867,0.00012477,2]
[331921639,1720848632655,-2559.38,0.00012477,2]
[331921642,1720848632666,-748.65194149,0.00012477,2]
[331921643,1720848632676,-432.000004,0.00012477,2]
[331921645,1720848632687,-337.01913656,0.00012477,2]
[331921647,1720848632703,-1611.01757943,0.00012477,2]
[331921649,1720848632712,-641.41,0.00012504,2]
[331921651,1720848632721,-250.0,0.0001255,2]
[331921653,1720848632731,-154.16610012,0.000126,2]
[331921655,1720848632740,-40.4634367,0.0001269,2]
[331921657,1720848632751,-141.7965633,0.0001269,2]
[331921659,1720848632760,-248.04430937,0.0001269,2]
[331921661,1720848632771,-1417.72569063,0.0001269,2]
[331921663,1720848632780,-179.99,0.0001269,2]
[331921665,1720848632789,-150.99,0.0001271,2]
[331921667,1720848632798,-427.9,0.00012868,2]
[331921669,1720848632807,-1250.0,0.00013,2]
[331921670,1720848632816,-11889.9052,0.000131,2]
[331921671,1720848632825,-200.0,0.000131,4]
[331921672,1720848632834,-150.0,0.00013104,2]
[331921673,1720848632843,-150.0,0.00013104,2]
[331921674,1720848632852,-150.0,0.00013152,2]
[331921675,1720848632862,-500.0,0.000132,4]
[331921676,1720848632874,-800.0,0.000133,4]
[331921677,1720848632883,-1000.0,0.000134,4]
[331921678,1720848632892,-8660.0,0.00013448,2]
[331921679,1720848632902,-520.51131707,0.00013472,2]
[331921680,1720848632914,-155.22541487,0.00013472,2]
[331921681,1720848632923,-155.0,0.00013472,2]
[331921682,1720848632933,-1300.0,0.000135,4]
[331921683,1720848632944,-173.67,0.00013505,2]
[331921684,1720848632955,-255.0,0.00013574,2]
[331921685,1720848632964,-200.0,0.000136,4]
[331921686,1720848632973,-150.0,0.00013652,2]
[331921687,1720848632983,-420.0,0.00013689,2]
[331921688,1720848632993,-228.42,0.00013699,2]
[331921689,1720848633002,-250.0,0.00013699,2]
[331921690,1720848633013,-74357.6577,0.000137,2]
[331921691,1720848633022,-200.0,0.000137,5]
[331921692,1720848633031,-184.0405,0.00013799,2]
[331921693,1720848633040,-39494.2863,0.00013799,2]
[331921694,1720848633049,-21674.3926468,0.00013799,2]
[331921695,1720848633060,-2547.27945,0.00013799,2]
[331921696,1720848633072,-10630.4216032,0.00013799,2]
[331921697,1720848633081,-182.4338,0.00013799,2]
[331921698,1720848633090,-2243.3842,0.00013799,2]
[331921699,1720848633099,-1448.96064936,0.00013799,2]
[331921700,1720848633110,-540.10935064,0.00013799,2]
[331921701,1720848633119,-1327.19,0.00013799,2]
[331921702,1720848633128,-500.0,0.00013799,2]
[331921703,1720848633137,-354.74175578,0.000138,2]
[331921704,1720848633148,-306.20467746,0.000138,2]
[331921705,1720848633159,-4475.52028849,0.000138,2]
[331921706,1720848633170,-3255.09037,0.000138,2]
[331921707,1720848633199,2791.42364177,0.00011199,2]
[331921723,1720848638947,-254.25713924,0.00013516,2]
[331921724,1720848638958,-5182.07926499,0.000138,2]
[331921725,1720848639051,-1662.12038026,0.000138,2]
[331921726,1720848639062,-6290.0,0.000138,2]
[331921727,1720848639360,-2650.61630072,0.000138,2]
[331921728,1720848639375,-251.9475,0.000138,2]
[331921729,1720848639387,-4249.7187623,0.000138,2]
[331921730,1720848639396,-289.0569,0.000138,2]
[331921731,1720848639406,-200.0,0.000138,5]
[331921732,1720848639416,-200.0,0.00013809,2]
[331921733,1720848639425,-208.72645291,0.00013825,2]